[Event "Mentese WGM 2019"]
[Site "Mentese"]
[Date "2019.06.24"]
[Round "1.1"]
[White "Rakhmangulova, Anastasiya"]
[Black "Atalik, Ekaterina"]
[Result "1/2-1/2"]
[ECO "C54"]
[WhiteElo "2217"]
[BlackElo "2452"]
[Annotator "RC"]
[PlyCount "108"]
[EventDate "2019.06.24"]
[EventType "schev"]
[EventCountry "TUR"]
[SourceTitle "playchess.com"]
[Source "ChessBase"]
[SourceQuality "1"]
[TimeControl "5400+30"]

1. e4 {[%emt 0:00:30]} e5 {[%emt 0:00:30]} 2. Nf3 {[%emt 0:00:00]} Nc6 {[%emt 0:00:00]} 3. Bc4 {[%emt 0:00:00]} Bc5 {[%emt 0:00:00]} 4. d3 {[%emt 0:00:00]} Nf6 {[%emt 0:00:30]} 5. O-O {[%emt 0:00:00]} d6 {[%emt 0:00:30]} 6. c3 {[%emt 0:00:00]} O-O {[%emt 0:00:30]} 7. a4 {[%emt 0:00:00]} a5 {[%emt 0:01:30]} 8. Bg5 {[%emt 0:00:30]} Ba7 {[%emt 0:03:30]} 9. Na3 {[%emt 0:07:30]} Ne7 {[%emt 0:02:30]} 10. Bxf6 {[%emt 0:08:30]} gxf6 {[%emt 0:00:00]} 11. d4 {[%emt 0:13:30]} Ng6 {[%emt 0:02:00]} 12. Nc2 {[%emt 0:02:30]} Re8 {[%emt 0:06:30]} 13. Re1 {[%emt 0:03:30]} c6 {[%emt 0:02:30]} 14. g3 {[%emt 0:09:30]} Bh3 {[%emt 0:12:30]} 15. Ne3 {[%emt 0:04:30]} Qd7 {[%emt 0:15:30]} 16. d5 {[%emt 0:13:30]} Rf8 {[%emt 0:06:30]} 17. Kh1 {[%emt 0:02:30]} Bxe3 {[%emt 0:05:30]} 18. Rxe3 {[%emt 0:04:30]} Bg4 {[%emt 0:01:30]} 19. Be2 {[%emt 0:10:38]} Kh8 {[%emt 0:06:30]} 20. Ng1 {[%emt 0:03:42]} Bxe2 {[%emt 0:01:30]} 21. Nxe2 {[%emt 0:00:26]} f5 {[%emt 0:03:30]} 22. f3 {[%emt 0:07:17]} fxe4 {[%emt 0:00:30]} 23. fxe4 {[%emt 0:00:05]} f5 {[%emt 0:01:30]} 24. c4 {[%emt 0:03:36]} f4 {[%emt 0:04:30]} 25. Rf3 {[%emt 0:01:55]} cxd5 {[%emt 0:06:15]} 26. cxd5 {[%emt 0:03:01]} fxg3 {[%emt 0:01:58]} 27. Nxg3 {[%emt 0:00:19]} Rxf3 {[%emt 0:00:23]} 28. Qxf3 {[%emt 0:00:04]} Rf8 {[%emt 0:00:05]} 29. Qc3 {[%emt 0:01:08]} Qg4 {[%emt 0:02:03]} 30. Rc1 {[%emt 0:00:38]} Nh4 {[%emt 0:02:18]} 31. Qe3 {[%emt 0:00:59]} Rf3 {[%emt 0:04:20]} 32. Qb6 {[%emt 0:00:15]} Rf8 {[%emt 0:02:55]} 33. Qe3 {[%emt 0:00:40]} Qh3 {[%emt 0:02:50]} 34. Rg1 {[%emt 0:00:06]} Ng6 {[%emt 0:02:00]} 35. Nf5 {[%emt 0:00:38]} Qxe3 {[%emt 0:00:54]} 36. Nxe3 {[%emt 0:00:03]} Rf4 {[%emt 0:01:02]} 37. Rc1 {[%emt 0:01:01]} Nh4 {[%emt 0:00:21]} 38. Nf5 {[%emt 0:00:52]} Nxf5 {[%emt 0:00:16]} 39. exf5 {[%emt 0:00:04]} Kg7 {[%emt 0:00:39]} 40. Rc7+ {[%emt 0:00:07]} Kf6 {[%emt 0:00:04]} 41. Rxh7 {[%emt 0:00:32]} Kxf5 {[%emt 0:01:14]} 42. Rxb7 {[%emt 0:00:35]} Rxa4 {[%emt 0:00:19]} 43. Rb6 {[%emt 0:00:23]} Rb4 {[%emt 0:00:20]} 44. Rxd6 {[%emt 0:01:08]} Rxb2 {[%emt 0:00:04]} 45. Ra6 {[%emt 0:00:10]} Ra2 {[%emt 0:00:55]} 46. d6 {[%emt 0:00:18]} Ke6 {[%emt 0:00:32]} 47. h4 {[%emt 0:01:07]} e4 {[%emt 0:00:05]} 48. Kg1 {[%emt 0:00:16]} e3 {[%emt 0:00:31]} 49. Kf1 {[%emt 0:00:04]} a4 {[%emt 0:00:34]} 50. h5 {[%emt 0:00:10]} a3 {[%emt 0:01:10]} 51. h6 {[%emt 0:00:32]} Ra1+ {[%emt 0:01:02]} 52. Ke2 {[%emt 0:00:34]} a2 {[%emt 0:00:00]} 53. h7 {[%emt 0:00:04]} Rh1 {[%emt 0:00:24]} 54. Rxa2 {[%emt 0:01:02]} Rxh7 {[%emt 0:00:50]} 1/2-1/2

[Event "Mentese WGM 2019"]
[Site "Mentese"]
[Date "2019.06.24"]
[Round "1.2"]
[White "Zubova, Mariya"]
[Black "Doluhanova, Evgeniya"]
[Result "0-1"]
[ECO "C60"]
[WhiteElo "2164"]
[BlackElo "2319"]
[Annotator "NA"]
[PlyCount "103"]
[EventDate "2019.06.24"]
[EventType "schev"]
[EventCountry "TUR"]
[SourceTitle "playchess.com"]
[Source "ChessBase"]
[SourceQuality "1"]
[TimeControl "5400+30"]

1. e4 {[%emt 0:00:30]} e5 {[%emt 0:00:30]} 2. Nf3 {[%emt 0:00:00]} Nc6 {[%emt 0:00:00]} 3. Bb5 {[%emt 0:00:00]} g6 {[%emt 0:00:00]} 4. d4 {[%emt 0:01:30]} exd4 {[%emt 0:00:30]} 5. Bg5 {[%emt 0:00:30]} Be7 {[%emt 0:00:00]} 6. Bxe7 {[%emt 0:00:30]} Qxe7 {[%emt 0:00:00]} 7. Bxc6 {[%emt 0:00:30]} dxc6 {[%emt 0:00:00]} 8. Qxd4 {[%emt 0:00:30]} Nf6 {[%emt 0:00:00]} 9. Nc3 {[%emt 0:02:30]} Bg4 {[%emt 0:03:30]} 10. Nd2 {[%emt 0:01:30]} O-O {[%emt 0:08:30]} 11. O-O {[%emt 0:01:30]} Rad8 {[%emt 0:01:30]} 12. Qe3 {[%emt 0:00:00]} Rfe8 {[%emt 0:03:30]} 13. h3 {[%emt 0:04:00]} Bc8 {[%emt 0:00:30]} 14. Rfe1 {[%emt 0:09:30]} b6 {[%emt 0:02:30]} 15. Rad1 {[%emt 0:05:30]} Bb7 {[%emt 0:05:30]} 16. a3 {[%emt 0:08:30]} c5 {[%emt 0:01:30]} 17. e5 {[%emt 0:17:30]} Nd5 {[%emt 0:05:30]} 18. Qg3 {[%emt 0:03:30]} Nxc3 {[%emt 0:07:30]} 19. Qxc3 {[%emt 0:02:30]} Qg5 {[%emt 0:02:30]} 20. g3 {[%emt 0:03:30]} Qf5 {[%emt 0:02:30]} 21. g4 {[%emt 0:05:30]} Qf4 {[%emt 0:02:30]} 22. Qg3 {[%emt 0:08:30]} Qxg3+ {[%emt 0:12:30]} 23. fxg3 {[%emt 0:02:30]} Rd4 {[%emt 0:02:30]} 24. c3 {[%emt 0:03:49]} Rd3 {[%emt 0:00:30]} 25. Nf1 {[%emt 0:00:32]} Rxe5 {[%emt 0:03:30]} 26. Rxd3 {[%emt 0:01:21]} Rxe1 {[%emt 0:00:30]} 27. Rd8+ {[%emt 0:01:30]} Kg7 {[%emt 0:00:00]} 28. Kf2 {[%emt 0:00:11]} Rb1 {[%emt 0:01:00]} 29. Rd2 {[%emt 0:00:06]} a5 {[%emt 0:02:30]} 30. g5 {[%emt 0:02:43]} Bc8 {[%emt 0:04:30]} 31. h4 {[%emt 0:02:00]} h6 {[%emt 0:01:30]} 32. Ne3 {[%emt 0:02:25]} hxg5 {[%emt 0:00:30]} 33. hxg5 {[%emt 0:00:03]} Be6 {[%emt 0:00:30]} 34. Kf3 {[%emt 0:01:01]} Kf8 {[%emt 0:02:30]} 35. Kf4 {[%emt 0:01:23]} Ke7 {[%emt 0:00:30]} 36. Re2 {[%emt 0:02:41]} b5 {[%emt 0:02:30]} 37. Ke5 {[%emt 0:02:01]} c6 {[%emt 0:01:30]} 38. Rd2 {[%emt 0:01:06]} Re1 {[%emt 0:02:30]} 39. Kf4 {[%emt 0:00:03]} b4 {[%emt 0:01:30]} 40. axb4 {[%emt 0:00:47]} cxb4 {[%emt 0:00:30]} 41. cxb4 {[%emt 0:00:07]} axb4 {[%emt 0:00:30]} 42. Kf3 {[%emt 0:02:33]} Rc1 {[%emt 0:02:15]} 43. Rc2 {[%emt 0:02:29]} Rxc2 {[%emt 0:00:25]} 44. Nxc2 {[%emt 0:00:04]} c5 {[%emt 0:00:15]} 45. Ke3 {[%emt 0:00:48]} Kd6 {[%emt 0:01:07]} 46. Ne1 {[%emt 0:00:12]} Kd5 {[%emt 0:00:54]} 47. Nf3 {[%emt 0:00:22]} c4 {[%emt 0:02:36]} 48. Nd4 {[%emt 0:00:54]} Bg4 {[%emt 0:02:54]} 49. Nc2 {[%emt 0:00:17]} b3 {[%emt 0:03:48]} 50. Na3 {[%emt 0:00:59]} c3 {[%emt 0:00:28]} 51. Kd3 {[%emt 0:00:44]} c2 {[%emt 0:02:08]} 52. Nb1 {[%emt 0:00:33]} 0-1

[Event "Mentese WGM 2019"]
[Site "Mentese"]
[Date "2019.06.24"]
[Round "1.3"]
[White "Novikova, Margarita"]
[Black "Khomeriki, Nino"]
[Result "0-1"]
[ECO "C55"]
[WhiteElo "2020"]
[BlackElo "2313"]
[Annotator "NA"]
[PlyCount "106"]
[EventDate "2019.06.24"]
[EventType "schev"]
[EventCountry "TUR"]
[SourceTitle "playchess.com"]
[Source "ChessBase"]
[SourceQuality "1"]
[TimeControl "5400+30"]

1. e4 {[%emt 0:00:30]} e5 {[%emt 0:00:30]} 2. Nf3 {[%emt 0:00:00]} Nc6 {[%emt 0:00:00]} 3. Bc4 {[%emt 0:00:00]} Nf6 {[%emt 0:00:00]} 4. d3 {[%emt 0:00:00]} Be7 {[%emt 0:00:00]} 5. O-O {[%emt 0:00:00]} O-O {[%emt 0:00:00]} 6. Re1 {[%emt 0:00:00]} d6 {[%emt 0:00:30]} 7. a4 {[%emt 0:00:00]} Kh8 {[%emt 0:00:00]} 8. a5 {[%emt 0:01:30]} a6 {[%emt 0:00:00]} 9. h3 {[%emt 0:00:00]} h6 {[%emt 0:00:00]} 10. Nc3 {[%emt 0:03:00]} Nh7 {[%emt 0:00:00]} 11. Nd5 {[%emt 0:00:30]} f5 {[%emt 0:00:30]} 12. c3 {[%emt 0:10:30]} Bf6 {[%emt 0:00:00]} 13. b4 {[%emt 0:08:30]} Ne7 {[%emt 0:00:00]} 14. Nxf6 {[%emt 0:05:30]} Nxf6 {[%emt 0:00:30]} 15. Ba2 {[%emt 0:13:30]} Qe8 {[%emt 0:03:30]} 16. c4 {[%emt 0:03:30]} Ng6 {[%emt 0:04:30]} 17. Bb1 {[%emt 0:06:30]} fxe4 {[%emt 0:03:30]} 18. dxe4 {[%emt 0:00:30]} Be6 {[%emt 0:00:30]} 19. Bd3 {[%emt 0:06:30]} Qf7 {[%emt 0:07:30]} 20. Qe2 {[%emt 0:02:30]} Nh7 {[%emt 0:01:30]} 21. Nh2 {[%emt 0:01:30]} Nf4 {[%emt 0:01:30]} 22. Bxf4 {[%emt 0:01:30]} Qxf4 {[%emt 0:00:30]} 23. Qe3 {[%emt 0:02:30]} Qf7 {[%emt 0:00:30]} 24. c5 {[%emt 0:00:30]} dxc5 {[%emt 0:02:30]} 25. Qxc5 {[%emt 0:02:30]} Rad8 {[%emt 0:04:30]} 26. Ra3 {[%emt 0:03:30]} Rd4 {[%emt 0:04:30]} 27. Nf3 {[%emt 0:05:30]} Bxh3 {[%emt 0:06:30]} 28. Bf1 {[%emt 0:03:44]} Bg4 {[%emt 0:01:30]} 29. b5 {[%emt 0:02:44]} axb5 {[%emt 0:00:30]} 30. Qxe5 {[%emt 0:01:12]} Ra4 {[%emt 0:01:30]} 31. Rc3 {[%emt 0:00:12]} c6 {[%emt 0:01:30]} 32. Qc5 {[%emt 0:02:45]} Bh5 {[%emt 0:12:30]} 33. Ne5 {[%emt 0:05:43]} Qe8 {[%emt 0:00:00]} 34. Rh3 {[%emt 0:03:25]} Ra2 {[%emt 0:04:00]} 35. Nd3 {[%emt 0:00:31]} Bf7 {[%emt 0:01:30]} 36. Rg3 {[%emt 0:02:17]} Ng5 {[%emt 0:03:30]} 37. f4 {[%emt 0:01:16]} Ne6 {[%emt 0:00:30]} 38. Qc3 {[%emt 0:01:42]} Qd8 {[%emt 0:00:30]} 39. f5 {[%emt 0:01:44]} Qd4+ {[%emt 0:00:30]} 40. Qxd4 {[%emt 0:00:02]} Nxd4 {[%emt 0:00:30]} 41. Nc5 {[%emt 0:00:27]} b4 {[%emt 0:04:30]} 42. Rd1 {[%emt 0:01:32]} Nc2 {[%emt 0:07:30]} 43. e5 {[%emt 0:00:12]} Rxa5 {[%emt 0:00:30]} 44. Nxb7 {[%emt 0:00:20]} Rxe5 {[%emt 0:00:00]} 45. Bd3 {[%emt 0:00:56]} Nd4 {[%emt 0:01:00]} 46. Rg4 {[%emt 0:00:31]} Bh5 {[%emt 0:04:30]} 47. Rxd4 {[%emt 0:00:21]} Bxd1 {[%emt 0:00:30]} 48. Bc4 {[%emt 0:00:33]} Bc2 {[%emt 0:00:30]} 49. Nd6 {[%emt 0:00:52]} Kh7 {[%emt 0:00:30]} 50. Bf7 {[%emt 0:00:13]} Rxf7 {[%emt 0:01:30]} 51. Nxf7 {[%emt 0:00:05]} Rxf5 {[%emt 0:00:00]} 52. Rd7 {[%emt 0:01:31]} b3 {[%emt 0:00:00]} 53. Rb7 {[%emt 0:00:11]} Rb5 {[%emt 0:00:30]} 0-1

[Event "Mentese WGM 2019"]
[Site "Mentese"]
[Date "2019.06.24"]
[Round "1.4"]
[White "Anacoglu, Cisel"]
[Black "Dimitrijevic, Aleksandra"]
[Result "1-0"]
[ECO "C10"]
[WhiteElo "1973"]
[BlackElo "2190"]
[Annotator "NA"]
[PlyCount "85"]
[EventDate "2019.06.24"]
[EventType "schev"]
[EventCountry "TUR"]
[SourceTitle "playchess.com"]
[Source "ChessBase"]
[SourceQuality "1"]
[TimeControl "5400+30"]

1. e4 {[%emt 0:00:30]} e6 {[%emt 0:00:30]} 2. d4 {[%emt 0:00:00]} d5 {[%emt 0:00:00]} 3. Nd2 {[%emt 0:00:00]} dxe4 {[%emt 0:00:00]} 4. Nxe4 {[%emt 0:00:00]} Bd7 {[%emt 0:00:30]} 5. Nf3 {[%emt 0:00:00]} Bc6 {[%emt 0:00:30]} 6. Bd3 {[%emt 0:00:30]} Nf6 {[%emt 0:03:30]} 7. Nxf6+ {[%emt 0:01:30]} gxf6 {[%emt 0:00:30]} 8. O-O {[%emt 0:00:30]} Bg7 {[%emt 0:02:30]} 9. Re1 {[%emt 0:05:30]} O-O {[%emt 0:06:30]} 10. c4 {[%emt 0:06:30]} Re8 {[%emt 0:12:30]} 11. Bf4 {[%emt 0:04:30]} Nd7 {[%emt 0:06:30]} 12. d5 {[%emt 0:07:30]} exd5 {[%emt 0:01:30]} 13. Rxe8+ {[%emt 0:00:30]} Qxe8 {[%emt 0:00:30]} 14. cxd5 {[%emt 0:00:00]} Bxd5 {[%emt 0:00:00]} 15. Bxh7+ {[%emt 0:00:00]} Kxh7 {[%emt 0:00:00]} 16. Qxd5 {[%emt 0:00:30]} c6 {[%emt 0:00:30]} 17. Qf5+ {[%emt 0:01:30]} Kg8 {[%emt 0:01:30]} 18. Re1 {[%emt 0:02:30]} Qc8 {[%emt 0:00:30]} 19. Re7 {[%emt 0:02:30]} Nb6 {[%emt 0:00:30]} 20. Qxc8+ {[%emt 0:01:30]} Rxc8 {[%emt 0:00:30]} 21. Rxb7 {[%emt 0:00:00]} Nd5 {[%emt 0:01:30]} 22. Bd2 {[%emt 0:02:00]} a5 {[%emt 0:01:30]} 23. Bxa5 {[%emt 0:02:30]} Ra8 {[%emt 0:01:30]} 24. b4 {[%emt 0:01:30]} c5 {[%emt 0:00:30]} 25. a3 {[%emt 0:01:30]} Bf8 {[%emt 0:00:30]} 26. g3 {[%emt 0:04:30]} c4 {[%emt 0:02:30]} 27. Rd7 {[%emt 0:01:30]} Nc3 {[%emt 0:01:30]} 28. Rc7 {[%emt 0:00:30]} Nb5 {[%emt 0:00:30]} 29. Rxc4 {[%emt 0:00:30]} Nxa3 {[%emt 0:00:00]} 30. Rd4 {[%emt 0:10:30]} Rc8 {[%emt 0:03:00]} 31. Rd8 {[%emt 0:04:30]} Rxd8 {[%emt 0:00:30]} 32. Bxd8 {[%emt 0:00:00]} Kg7 {[%emt 0:00:30]} 33. Ba5 {[%emt 0:00:00]} f5 {[%emt 0:01:30]} 34. Nd4 {[%emt 0:04:30]} Kf6 {[%emt 0:00:00]} 35. b5 {[%emt 0:03:30]} Bc5 {[%emt 0:02:00]} 36. Nb3 {[%emt 0:01:30]} Bd6 {[%emt 0:00:30]} 37. b6 {[%emt 0:00:30]} Nc4 {[%emt 0:00:30]} 38. b7 {[%emt 0:00:30]} Bb8 {[%emt 0:00:30]} 39. Bb4 {[%emt 0:01:30]} f4 {[%emt 0:00:30]} 40. Nc5 {[%emt 0:00:30]} Ne5 {[%emt 0:00:00]} 41. Bc3 {[%emt 0:00:30]} fxg3 {[%emt 0:00:00]} 42. hxg3 {[%emt 0:00:00]} Kf5 {[%emt 0:00:30]} 43. Bxe5 {[%emt 0:00:00]} 1-0

[Event "Mentese WGM 2019"]
[Site "Mentese"]
[Date "2019.06.24"]
[Round "1.5"]
[White "Aydin, Gulenay"]
[Black "Arda, Cagil Irmak"]
[Result "0-1"]
[ECO "C06"]
[WhiteElo "1967"]
[BlackElo "2069"]
[Annotator "NA"]
[PlyCount "78"]
[EventDate "2019.06.24"]
[EventType "schev"]
[EventCountry "TUR"]
[SourceTitle "playchess.com"]
[Source "ChessBase"]
[SourceQuality "1"]
[TimeControl "5400+30"]

1. e4 {[%emt 0:00:30]} e6 {[%emt 0:00:30]} 2. d4 {[%emt 0:00:00]} d5 {[%emt 0:00:00]} 3. Nd2 {[%emt 0:00:00]} Be7 {[%emt 0:00:00]} 4. Ngf3 {[%emt 0:00:30]} Nf6 {[%emt 0:00:30]} 5. e5 {[%emt 0:00:30]} Nfd7 {[%emt 0:00:30]} 6. Bd3 {[%emt 0:01:30]} c5 {[%emt 0:00:00]} 7. c3 {[%emt 0:00:30]} Nc6 {[%emt 0:00:00]} 8. O-O {[%emt 0:00:30]} g5 {[%emt 0:00:30]} 9. dxc5 {[%emt 0:01:30]} g4 {[%emt 0:00:30]} 10. Nd4 {[%emt 0:00:30]} Ndxe5 {[%emt 0:00:30]} 11. N2b3 {[%emt 0:16:30]} Nxd3 {[%emt 0:00:30]} 12. Qxd3 {[%emt 0:00:30]} e5 {[%emt 0:03:30]} 13. Nxc6 {[%emt 0:03:30]} bxc6 {[%emt 0:00:00]} 14. Re1 {[%emt 0:02:30]} f6 {[%emt 0:01:00]} 15. Bh6 {[%emt 0:11:30]} Kf7 {[%emt 0:11:30]} 16. Rad1 {[%emt 0:03:30]} Qg8 {[%emt 0:12:30]} 17. Qe2 {[%emt 0:13:30]} Qg6 {[%emt 0:07:30]} 18. Bc1 {[%emt 0:00:30]} a5 {[%emt 0:07:30]} 19. Qe3 {[%emt 0:12:30]} a4 {[%emt 0:07:30]} 20. Nd2 {[%emt 0:00:00]} Ra5 {[%emt 0:04:30]} 21. c4 {[%emt 0:15:29]} d4 {[%emt 0:08:30]} 22. Qe2 {[%emt 0:00:58]} Bf5 {[%emt 0:05:30]} 23. Nf1 {[%emt 0:03:01]} Bxc5 {[%emt 0:08:30]} 24. Qd2 {[%emt 0:04:03]} Ra7 {[%emt 0:00:30]} 25. Re2 {[%emt 0:01:01]} Rb8 {[%emt 0:06:41]} 26. a3 {[%emt 0:00:11]} Be6 {[%emt 0:04:47]} 27. Ng3 {[%emt 0:04:18]} Bxc4 {[%emt 0:03:10]} 28. Re4 {[%emt 0:01:06]} Bd5 {[%emt 0:01:11]} 29. Re2 {[%emt 0:00:10]} Bb6 {[%emt 0:01:27]} 30. Qb4 {[%emt 0:01:23]} Bc7 {[%emt 0:00:19]} 31. Qe1 {[%emt 0:01:04]} Bc4 {[%emt 0:03:47]} 32. Re4 {[%emt 0:00:46]} Bd5 {[%emt 0:00:41]} 33. Re2 {[%emt 0:00:17]} Bb3 {[%emt 0:00:48]} 34. Ne4 {[%emt 0:00:47]} f5 {[%emt 0:01:09]} 35. Ng5+ {[%emt 0:01:30]} Kg8 {[%emt 0:00:14]} 36. Rxd4 {[%emt 0:00:47]} exd4 {[%emt 0:00:45]} 37. Re7 {[%emt 0:00:27]} Ba5 {[%emt 0:00:31]} 38. Qe5 {[%emt 0:00:33]} Rxe7 {[%emt 0:00:11]} 39. Qxe7 {[%emt 0:00:20]} Re8 {[%emt 0:00:18]} 0-1

[Event "Mentese WGM 2019"]
[Site "Mentese"]
[Date "2019.06.24"]
[Round "2.1"]
[White "Doluhanova, Evgeniya"]
[Black "Rakhmangulova, Anastasiya"]
[Result "1/2-1/2"]
[ECO "A07"]
[WhiteElo "2319"]
[BlackElo "2217"]
[Annotator "NA"]
[PlyCount "74"]
[EventDate "2019.06.24"]
[EventType "schev"]
[EventCountry "TUR"]
[SourceTitle "playchess.com"]
[Source "ChessBase"]
[SourceQuality "1"]
[TimeControl "5400+30"]

1. Nf3 {[%emt 0:00:30]} d5 {[%emt 0:00:30]} 2. g3 {[%emt 0:00:30]} c6 {[%emt 0:00:00]} 3. Bg2 {[%emt 0:00:30]} Bg4 {[%emt 0:00:00]} 4. b3 {[%emt 0:01:30]} Nd7 {[%emt 0:03:30]} 5. Bb2 {[%emt 0:00:30]} Qc7 {[%emt 0:00:30]} 6. d4 {[%emt 0:00:30]} Bxf3 {[%emt 0:03:30]} 7. Bxf3 {[%emt 0:00:30]} Ngf6 {[%emt 0:00:30]} 8. c4 {[%emt 0:02:30]} e6 {[%emt 0:00:30]} 9. Nc3 {[%emt 0:00:30]} h5 {[%emt 0:03:30]} 10. e4 {[%emt 0:09:30]} dxe4 {[%emt 0:03:30]} 11. Nxe4 {[%emt 0:00:30]} Nxe4 {[%emt 0:00:00]} 12. Bxe4 {[%emt 0:00:30]} Nf6 {[%emt 0:18:00]} 13. Bf3 {[%emt 0:00:30]} Bb4+ {[%emt 0:01:30]} 14. Kf1 {[%emt 0:00:00]} O-O-O {[%emt 0:00:30]} 15. Qe2 {[%emt 0:01:00]} h4 {[%emt 0:04:30]} 16. c5 {[%emt 0:03:30]} Qd7 {[%emt 0:04:30]} 17. Rc1 {[%emt 0:06:30]} Ba5 {[%emt 0:06:30]} 18. b4 {[%emt 0:10:30]} Bxb4 {[%emt 0:08:30]} 19. Rc4 {[%emt 0:00:30]} Nd5 {[%emt 0:07:30]} 20. gxh4 {[%emt 0:07:30]} Ba5 {[%emt 0:00:30]} 21. Rg1 {[%emt 0:00:30]} Rxh4 {[%emt 0:00:30]} 22. Rxg7 {[%emt 0:01:30]} Rxh2 {[%emt 0:00:30]} 23. Ra4 {[%emt 0:03:30]} Nc3 {[%emt 0:09:30]} 24. Bxc3 {[%emt 0:01:30]} Bxc3 {[%emt 0:00:30]} 25. Qe5 {[%emt 0:02:30]} Bxd4 {[%emt 0:02:30]} 26. Qxh2 {[%emt 0:00:30]} Bxg7 {[%emt 0:00:00]} 27. Rxa7 {[%emt 0:02:30]} Qd3+ {[%emt 0:03:58]} 28. Kg2 {[%emt 0:06:30]} Qg6+ {[%emt 0:00:07]} 29. Kf1 {[%emt 0:01:30]} Rd2 {[%emt 0:12:51]} 30. Ra8+ {[%emt 0:22:01]} Kd7 {[%emt 0:00:04]} 31. Qf4 {[%emt 0:06:16]} Rd4 {[%emt 0:04:13]} 32. Qb8 {[%emt 0:03:00]} Qb1+ {[%emt 0:00:05]} 33. Kg2 {[%emt 0:00:05]} Ke7 {[%emt 0:02:47]} 34. Ra7 {[%emt 0:00:55]} Qg6+ {[%emt 0:00:46]} 35. Kf1 {[%emt 0:01:31]} Qb1+ {[%emt 0:00:04]} 36. Kg2 {[%emt 0:00:04]} Qg6+ {[%emt 0:00:50]} 37. Kf1 {[%emt 0:00:23]} Qb1+ {[%emt 0:00:31]} 1/2-1/2

[Event "Mentese WGM 2019"]
[Site "Mentese"]
[Date "2019.06.24"]
[Round "2.2"]
[White "Khomeriki, Nino"]
[Black "Zubova, Mariya"]
[Result "1-0"]
[ECO "D02"]
[WhiteElo "2313"]
[BlackElo "2164"]
[Annotator "NA"]
[PlyCount "53"]
[EventDate "2019.06.24"]
[EventType "schev"]
[EventCountry "TUR"]
[SourceTitle "playchess.com"]
[Source "ChessBase"]
[SourceQuality "1"]
[TimeControl "5400+30"]

1. d4 {[%emt 0:00:30]} Nf6 {[%emt 0:00:30]} 2. Nf3 {[%emt 0:00:00]} g6 {[%emt 0:00:00]} 3. Nbd2 {[%emt 0:00:00]} d5 {[%emt 0:00:00]} 4. b4 {[%emt 0:03:30]} Bg7 {[%emt 0:01:30]} 5. e3 {[%emt 0:00:00]} O-O {[%emt 0:00:30]} 6. c4 {[%emt 0:00:00]} c6 {[%emt 0:01:30]} 7. Be2 {[%emt 0:00:30]} Nbd7 {[%emt 0:01:30]} 8. Bb2 {[%emt 0:00:30]} h6 {[%emt 0:05:30]} 9. O-O {[%emt 0:00:30]} Ne4 {[%emt 0:00:30]} 10. Qb3 {[%emt 0:02:30]} Ndf6 {[%emt 0:03:30]} 11. Rfc1 {[%emt 0:01:30]} Bg4 {[%emt 0:04:30]} 12. Bd3 {[%emt 0:02:30]} Bf5 {[%emt 0:03:30]} 13. Nf1 {[%emt 0:01:30]} dxc4 {[%emt 0:03:30]} 14. Bxc4 {[%emt 0:00:30]} Nd6 {[%emt 0:01:30]} 15. Be2 {[%emt 0:01:30]} Nfe4 {[%emt 0:02:30]} 16. Ne5 {[%emt 0:00:30]} Kh7 {[%emt 0:04:30]} 17. f3 {[%emt 0:00:30]} Nf6 {[%emt 0:00:30]} 18. a4 {[%emt 0:03:30]} Nd7 {[%emt 0:03:30]} 19. b5 {[%emt 0:03:30]} cxb5 {[%emt 0:07:30]} 20. axb5 {[%emt 0:00:30]} Be6 {[%emt 0:06:30]} 21. Qd3 {[%emt 0:06:30]} f5 {[%emt 0:06:30]} 22. Nd2 {[%emt 0:01:30]} Nf7 {[%emt 0:00:30]} 23. f4 {[%emt 0:05:30]} Bd5 {[%emt 0:07:30]} 24. Nxg6 {[%emt 0:07:30]} Kxg6 {[%emt 0:02:30]} 25. Bh5+ {[%emt 0:00:30]} Kf6 {[%emt 0:03:30]} 26. e4 {[%emt 0:01:30]} Nb6 {[%emt 0:02:30]} 27. Qg3 {[%emt 0:04:30]} 1-0

[Event "Mentese WGM 2019"]
[Site "Mentese"]
[Date "2019.06.24"]
[Round "2.3"]
[White "Dimitrijevic, Aleksandra"]
[Black "Novikova, Margarita"]
[Result "1/2-1/2"]
[ECO "A30"]
[WhiteElo "2190"]
[BlackElo "2020"]
[Annotator "NA"]
[PlyCount "66"]
[EventDate "2019.06.24"]
[EventType "schev"]
[EventCountry "TUR"]
[SourceTitle "playchess.com"]
[Source "ChessBase"]
[SourceQuality "1"]
[TimeControl "5400+30"]

1. c4 {[%emt 0:00:30]} c5 {[%emt 0:00:30]} 2. Nc3 {[%emt 0:00:00]} Nc6 {[%emt 0:00:00]} 3. Nf3 {[%emt 0:00:00]} Nf6 {[%emt 0:00:00]} 4. g3 {[%emt 0:00:00]} g6 {[%emt 0:00:00]} 5. Bg2 {[%emt 0:00:00]} Bg7 {[%emt 0:00:00]} 6. O-O {[%emt 0:00:30]} O-O {[%emt 0:00:00]} 7. b3 {[%emt 0:00:00]} b6 {[%emt 0:00:00]} 8. Bb2 {[%emt 0:00:00]} Bb7 {[%emt 0:00:30]} 9. a3 {[%emt 0:00:30]} a6 {[%emt 0:00:00]} 10. e3 {[%emt 0:00:30]} e6 {[%emt 0:00:00]} 11. Qe2 {[%emt 0:00:00]} Qe7 {[%emt 0:00:30]} 12. d3 {[%emt 0:00:00]} d6 {[%emt 0:00:00]} 13. Rfd1 {[%emt 0:00:30]} Rfd8 {[%emt 0:00:00]} 14. Rab1 {[%emt 0:00:30]} Rab8 {[%emt 0:00:00]} 15. Ba1 {[%emt 0:00:00]} Ba8 {[%emt 0:00:00]} 16. Qc2 {[%emt 0:01:00]} Qc7 {[%emt 0:00:30]} 17. Na2 {[%emt 0:01:30]} Na7 {[%emt 0:00:00]} 18. Nc1 {[%emt 0:00:00]} Nc8 {[%emt 0:00:00]} 19. Ne2 {[%emt 0:00:00]} Ne7 {[%emt 0:00:30]} 20. Nf4 {[%emt 0:00:00]} Nf5 {[%emt 0:00:30]} 21. Bc3 {[%emt 0:00:00]} Ne8 {[%emt 0:00:00]} 22. Bxg7 {[%emt 0:00:30]} Nexg7 {[%emt 0:00:00]} 23. Ne1 {[%emt 0:00:30]} Bxg2 {[%emt 0:00:00]} 24. Nexg2 {[%emt 0:00:00]} Ne7 {[%emt 0:00:00]} 25. d4 {[%emt 0:00:00]} e5 {[%emt 0:00:30]} 26. dxe5 {[%emt 0:00:30]} dxe5 {[%emt 0:00:30]} 27. Ne2 {[%emt 0:00:30]} Rxd1+ {[%emt 0:00:30]} 28. Rxd1 {[%emt 0:00:00]} Rd8 {[%emt 0:00:00]} 29. Rxd8+ {[%emt 0:00:00]} Qxd8 {[%emt 0:00:00]} 30. Nc3 {[%emt 0:00:00]} Ne6 {[%emt 0:00:00]} 31. Ne1 {[%emt 0:00:00]} Nc7 {[%emt 0:00:00]} 32. Qd3 {[%emt 0:00:30]} Qxd3 {[%emt 0:00:30]} 33. Nxd3 {[%emt 0:00:00]} Nc6 {[%emt 0:00:30]} 1/2-1/2